fUSD/lending_fUSD_20250209
["ID","MTS","AMOUNT","RATE_DAILY","PERIOD"]
[352496446,1739137876865,-719.85,0.00016438,2]
[352496447,1739137876874,-719.85,0.00016438,2]
[352496448,1739137876884,-719.85,0.00016438,2]
[352496449,1739137876893,-719.85,0.00016438,2]
[352496450,1739137876903,-719.85,0.00016438,2]
[352496451,1739137876912,-719.85,0.00016438,2]
[352496452,1739137876922,-719.85,0.00016438,2]
[352496453,1739137876931,-719.85,0.00016438,2]
[352496454,1739137876940,-719.85,0.00016438,2]
[352496455,1739137876950,-719.85,0.00016438,2]
[352496456,1739137876960,-719.85,0.00016438,2]
[352496457,1739137876969,-719.85,0.00016438,2]
[352496458,1739137876979,-719.85,0.00016438,2]
[352496459,1739137876991,-719.85,0.00016438,2]
[352496460,1739137877000,-719.85,0.00016438,2]
[352496461,1739137877010,-719.85,0.00016438,2]
[352496462,1739137877019,-719.85,0.00016438,2]
[352496463,1739137877032,-719.85,0.00016438,2]
[352496464,1739137877042,-719.95830295,0.00016438,2]
[352496465,1739137877051,-500.0,0.00016438,2]
[352496466,1739137877060,-500.0,0.00016438,2]
[352496467,1739137877070,-564.66,0.00016438,2]
[352496468,1739137877079,-564.66,0.00016438,2]
[352496469,1739137877088,-564.66,0.00016438,2]
[352496470,1739137877100,-564.66,0.00016438,2]
[352496471,1739137877110,-564.66,0.00016438,2]
[352496472,1739137877123,-564.66,0.00016438,2]
[352496473,1739137877133,-564.66,0.00016438,2]
[352496474,1739137877143,-564.66,0.00016438,2]
[352496475,1739137877152,-564.66,0.00016438,2]
[352496476,1739137877162,-564.66,0.00016438,2]
[352496477,1739137877172,-564.66,0.00016438,2]
[352496478,1739137877182,-564.66,0.00016438,2]
[352496479,1739137877191,-564.66,0.00016438,2]
[352496480,1739137877202,-564.66,0.00016438,2]
[352496481,1739137877211,-564.66,0.00016438,2]
[352496482,1739137877221,-564.66,0.00016438,2]
[352496483,1739137877230,-564.66,0.00016438,2]
[352496484,1739137877239,-564.66,0.00016438,2]
[352496485,1739137877248,-564.66,0.00016438,2]
[352496486,1739137877257,-564.66,0.00016438,2]
[352496487,1739137877267,-564.66,0.00016438,2]
[352496488,1739137877276,-564.66,0.00016438,2]
[352496489,1739137877289,-564.66,0.00016438,2]
[352496490,1739137877299,-564.76281126,0.00016438,2]
[352496491,1739137877308,-403.94,0.00016438,2]
[352496492,1739137877318,-403.94,0.00016438,2]
[352496493,1739137877327,-403.94,0.00016438,2]
[352496494,1739137877337,-403.94,0.00016438,2]
[352496495,1739137877346,-403.94,0.00016438,2]
[352496496,1739137877356,-403.94,0.00016438,2]
[352496497,1739137877365,-403.94,0.00016438,2]
[352496498,1739137877374,-403.94,0.00016438,2]
[352496499,1739137877384,-403.94,0.00016438,2]
[352496500,1739137877393,-403.94,0.00016438,2]
[352496501,1739137877402,-403.94,0.00016438,2]
[352496502,1739137877412,-403.94,0.00016438,2]
[352496503,1739137877421,-403.94,0.00016438,2]
[352496504,1739137877431,-403.94,0.00016438,2]
[352496505,1739137877440,-403.94,0.00016438,2]
[352496506,1739137877449,-403.94,0.00016438,2]
[352496507,1739137877459,-403.94,0.00016438,2]
[352496508,1739137877469,-403.94,0.00016438,2]
[352496509,1739137877479,-403.94,0.00016438,2]
[352496510,1739137877489,-403.94,0.00016438,2]
[352496511,1739137877499,-403.94,0.00016438,2]
[352496512,1739137877509,-403.94,0.00016438,2]
[352496513,1739137877519,-403.94,0.00016438,2]
[352496514,1739137877532,-404.0222515,0.00016438,2]
[352496515,1739137877542,-2091.9,0.00016438,60]
[352496516,1739137877551,-2091.9,0.00016438,60]
[352496517,1739137877561,-2091.9,0.00016438,60]
[352496518,1739137877572,-2091.9,0.00016438,60]
[352496519,1739137877582,-2091.9,0.00016438,60]
[352496520,1739137877592,-2091.9,0.00016438,60]
[352496521,1739137877603,-2091.9,0.00016438,60]
[352496522,1739137877613,-2091.9,0.00016438,60]
[352496523,1739137877623,-2091.9,0.00016438,60]
[352496524,1739137877633,-2091.9,0.00016438,60]
[352496525,1739137877642,-2091.9,0.00016438,60]
[352496526,1739137877652,-2091.9,0.00016438,60]
[352496527,1739137877662,-2091.9,0.00016438,60]
[352496528,1739137877672,-2091.9,0.00016438,60]
[352496529,1739137877681,-2091.9,0.00016438,60]
[352496530,1739137877691,-2091.9,0.00016438,60]
[352496531,1739137877702,-2091.9,0.00016438,60]
[352496532,1739137877711,-2091.9,0.00016438,60]
[352496533,1739137877721,-2091.9,0.00016438,60]
[352496534,1739137877730,-2091.9,0.00016438,60]
[352496535,1739137877740,-2091.9,0.00016438,60]
[352496536,1739137877750,-2091.9,0.00016438,60]
[352496537,1739137877760,-2091.9,0.00016438,60]
[352496538,1739137877769,-2092.11701881,0.00016438,60]
[352496539,1739137877780,-1652.22,0.00016438,2]
[352496540,1739137877793,-1652.22,0.00016438,2]
[352496541,1739137877803,-1652.22,0.00016438,2]
[352496542,1739137877812,-1652.22,0.00016438,2]
[352496543,1739137877822,-1652.22,0.00016438,2]
[352496544,1739137877831,-1652.22,0.00016438,2]
[352496545,1739137877840,-1652.22,0.00016438,2]
[352496546,1739137877849,-1652.22,0.00016438,2]
[352496547,1739137877859,-1652.22,0.00016438,2]
[352496548,1739137877869,-1652.22,0.00016438,2]
[352496549,1739137877878,-1652.22,0.00016438,2]
[352496550,1739137877887,-1652.22,0.00016438,2]
[352496551,1739137877897,-1652.22,0.00016438,2]
[352496552,1739137877906,-1652.22,0.00016438,2]
[352496553,1739137877916,-1652.22,0.00016438,2]
[352496554,1739137877925,-1652.22,0.00016438,2]
[352496555,1739137877935,-1652.22,0.00016438,2]
[352496556,1739137877945,-1652.22,0.00016438,2]
[352496557,1739137877954,-1652.22,0.00016438,2]
[352496558,1739137877964,-1652.22,0.00016438,2]
[352496559,1739137877974,-1652.22,0.00016438,2]
[352496560,1739137877984,-1652.22,0.00016438,2]
[352496562,1739137877993,-1652.22,0.00016438,2]
[352496564,1739137878002,-1652.34926289,0.00016438,2]
[352496566,1739137878012,-171.29,0.00016438,2]
[352496568,1739137878022,-300.0,0.00016438,2]
[352496570,1739137878035,-150.0,0.00016438,2]
[352496572,1739137878044,-782.74,0.00016439,2]
[352496574,1739137878054,-500.0,0.00016447,2]
[352496576,1739137878065,-302.0269813,0.00016473,2]
[352496578,1739137878075,-316.12667746,0.00016473,2]
[352496580,1739137878086,-782.74,0.00016488,2]
[352496582,1739137878098,-60966.63613663,0.00016489,4]
[352496584,1739137878108,-1212.02160042,0.0001649,2]
[352496586,1739137878119,-4843.4,0.000165,2]
[352496588,1739137878129,-500.0,0.00016546,2]
[352496590,1739137878142,-171.29,0.00016575,2]
[352496592,1739137878153,-500.0,0.00016584,2]
[352496594,1739137878166,-24658.18615463,0.00016655,2]
[352496596,1739137878177,-751.43,0.00016658,30]
[352496598,1739137878187,-281.21032,0.00016688,7]
[352496600,1739137878198,-171.29,0.00016712,2]
[352496602,1739137878207,-176.34,0.00016712,2]
[352496605,1739137878218,-500.0,0.00016721,2]
[352496607,1739137878228,-216.793387,0.00016758,2]
[352496609,1739137878237,-450.0,0.0001677,2]
[352496611,1739137878248,-782.74,0.0001677,2]
[352496613,1739137878257,-116302.052344,0.00016771,7]
[352496615,1739137878267,-149403.219062,0.00016771,7]
[352496616,1739137878277,-1144.13866021,0.0001678,2]
[352496619,1739137878290,-506.23385982,0.00016788,2]
[352496621,1739137878301,-206.35618287,0.00016788,2]
[352496622,1739137878311,-720.64558215,0.00016794,2]
[352496624,1739137878320,-708.05574602,0.000168,2]
[352496626,1739137878330,-21027.25885666,0.000168,2]
[352496628,1739137878340,-343.65,0.00016813,2]
[352496631,1739137878351,-175.35,0.00016813,2]
[352496632,1739137878360,-11239.3946246,0.00016825,2]
[352496634,1739137878370,-203.1542423,0.00016839,2]
[352496635,1739137878381,-171.29,0.00016849,2]
[352496636,1739137878392,-39518.34837743,0.00016849,2]
[352496637,1739137878402,-500.0,0.00016858,2]
[352496638,1739137878413,-782.74,0.00016879,2]
[352496639,1739137878424,-31857.18073995,0.0001688,30]
[352496640,1739137878434,-74607.94605157,0.0001688,2]
[352496641,1739137878444,-281.21032,0.00016888,7]
[352496642,1739137878454,-86470.214247,0.000169,3]
[352496644,1739137878463,-5427.99,0.000169,7]
[352496645,1739137878474,-1000.0,0.00016921,2]
[352496647,1739137878484,-691.46909223,0.00016921,2]
[352496648,1739137878494,-1000.0,0.00016921,2]
[352496650,1739137878504,-200.0,0.0001696,2]
[352496652,1739137878514,-878.54,0.00016972,2]
[352496654,1739137878525,-171.29,0.00016986,2]
[352496656,1739137878538,-500.0,0.00016995,2]
[352496658,1739137878548,-3266.54282889,0.00017,2]
[352496660,1739137878558,-650.0,0.00017,2]
[352496662,1739137878568,-281.21032,0.00017088,7]
[352496664,1739137878578,-3470.918,0.00017104,2]
[352496666,1739137878589,-177.206,0.00017104,2]
[352496668,1739137878599,-171.29,0.00017123,2]
[352496670,1739137878609,-464.21,0.00017123,2]
[352496672,1739137878619,-250.0,0.00017123,2]
[352496674,1739137878630,-500.0,0.00017132,2]
[352496676,1739137878640,-1560.78,0.0001726,4]
[352496678,1739137878650,-171.29,0.0001726,2]
[352496680,1739137878659,-500.0,0.00017269,2]
[352496682,1739137878669,-800.0,0.00017277,2]
[352496684,1739137878680,-500.0,0.00017277,2]
[352496686,1739137878691,-281.21032,0.00017288,7]
[352496688,1739137878700,-171.29,0.00017397,2]
[352496690,1739137878710,-500.0,0.00017406,2]
[352496692,1739137878720,-2024.0,0.00017416,2]
[352496694,1739137878729,-1273.0,0.00017416,2]
[352496696,1739137878739,-1534.67,0.00017416,2]
[352496698,1739137878749,-2950.0,0.00017416,2]
[352496700,1739137878758,-783.0,0.00017416,2]
[352496702,1739137878770,-776.109,0.00017416,2]
[352496704,1739137878783,-539.0,0.00017416,2]
[352496706,1739137878793,-4025.0,0.00017416,2]
[352496708,1739137878803,-3913.0,0.00017416,2]
[352496710,1739137878813,-150.0,0.00017416,2]
[352496712,1739137878823,-150.0,0.00017416,2]
[352496714,1739137878832,-150.0,0.00017416,2]
[352496716,1739137878842,-1007.0,0.00017416,2]
[352496718,1739137878852,-150.0,0.00017416,2]
[352496732,1739137878984,-150.0,0.00017416,2]
[352496734,1739137878995,-1109.0,0.00017416,2]
[352496735,1739137879005,-1633.0,0.00017432,2]
[352496737,1739137879015,-1047.1035494,0.00017455,2]
[352496739,1739137879024,-9100.21227977,0.00017481,2]
[352496742,1739137879037,-9100.21227975,0.00017481,2]
[352496743,1739137879047,-9100.21227975,0.00017481,2]
[352496745,1739137879056,-281.21032,0.00017488,7]
[352496747,1739137879067,-200.0,0.0001751,2]
[352496749,1739137879078,-171.29,0.00017534,2]
[352496751,1739137879088,-500.0,0.00017543,2]
[352496753,1739137879102,-1700.0,0.00017551,2]
[352496755,1739137879112,-4843.4,0.000176,2]
[352496757,1739137879122,-171.29,0.00017671,2]
[352496759,1739137879132,-1000.0,0.00017676,2]
[352496761,1739137879143,-1000.0,0.00017676,2]
[352496763,1739137879153,-1000.0,0.00017676,2]
[352496765,1739137879163,-1000.0,0.00017676,2]
[352496767,1739137879173,-1000.0,0.00017676,2]
[352496769,1739137879186,-1000.0,0.00017676,2]
[352496771,1739137879196,-1000.0,0.00017676,2]
[352496773,1739137879206,-1000.0,0.00017676,2]
[352496775,1739137879216,-1000.0,0.00017676,2]
[352496777,1739137879227,-1000.0,0.00017676,2]
[352496779,1739137879238,-500.0,0.0001768,2]
[352496780,1739137879248,-281.21032,0.00017688,7]
[352496781,1739137879259,-24658.18615463,0.00017727,2]
[352496782,1739137879270,-782.74,0.00017807,2]
[352496783,1739137879284,-1000.0,0.00017808,4]
[352496784,1739137879293,-171.29,0.00017808,2]
[352496785,1739137879303,-350.0,0.00017808,2]
[352496786,1739137879314,-11239.3946246,0.00017815,2]
[352496787,1739137879324,-500.0,0.00017817,2]
[352496788,1739137879334,-281.21032,0.00017888,7]
[352496789,1739137879344,-1500.0,0.00017922,2]
[352496790,1739137879354,-1500.0,0.00017922,2]
[352496791,1739137879364,-171.29,0.00017945,2]
[352496792,1739137879375,-500.0,0.00017954,2]
[352496793,1739137879386,-782.74,0.00017999,2]
[352496794,1739137879395,-76400.0,0.00018,30]
[352496795,1739137879405,-15140.5964551,0.00018,2]
[352496796,1739137879415,-30179.95237059,0.00018,2]
[352496797,1739137879425,-1137.22902298,0.00018,2]
[352496798,1739137879436,-77715.04377727,0.00018,2]
[352496799,1739137879445,-1035.14662526,0.00018,2]
[352496800,1739137879455,-5624.46307854,0.00018,2]
[352496801,1739137879465,-24863.96083367,0.00018,3]
[352496802,1739137879475,-23683.14249102,0.00018,2]
[352496803,1739137879485,-200.0,0.0001806,2]
[352496804,1739137879495,-1000.0,0.00018082,4]
[352496805,1739137879505,-171.29,0.00018082,2]
[352496806,1739137879515,-200.0,0.00018082,2]
[352496807,1739137879526,-2000.0,0.00018082,2]
[352496808,1739137879538,-281.21032,0.00018088,7]
[352496809,1739137879548,-500.0,0.00018091,2]
[352496810,1739137879558,-782.74,0.00018099,2]
[352496811,1739137879569,-1701.04441518,0.000181,2]
[352496812,1739137879579,-131072.39994514,0.000181,2]
[352496813,1739137879717,-10999.87625567,0.000181,2]
[352496814,1739137879748,-500.0,9.109e-05,2]
[352496815,1739137879759,-513.31,0.00010204,2]
[352496816,1739137879768,-6765.20319138,0.000181,2]
[352496817,1739137879783,-537.74677365,0.000181,2]
[352496818,1739137879796,-343.94223718,0.000181,2]
[352496819,1739137879816,-500.0,0.00010118,2]
[352496820,1739137879826,-2116.93918295,0.000181,2]
[352496821,1739137880580,-500.0,8.972e-05,2]
[352496822,1739137880590,-500.0,9.109e-05,2]
[352496823,1739137880600,-500.0,9.246e-05,2]
[352496824,1739137880610,-500.0,9.246e-05,2]
[352496825,1739137880620,-500.0,9.383e-05,2]
[352496826,1739137880630,-174.67131166,9.52e-05,2]
[352496827,1739137880642,-325.32868834,9.52e-05,2]
[352496828,1739137880652,-500.0,9.655e-05,2]
[352496829,1739137880662,-500.0,9.655e-05,2]
[352496830,1739137880672,-500.0,9.792e-05,2]
[352496831,1739137880682,-500.0,9.929e-05,2]
[352496832,1739137880692,-500.0,0.00010066,2]
[352496833,1739137880702,-500.0,0.00010255,2]
[352496834,1739137880712,-500.0,0.00010392,2]
[352496835,1739137880722,-500.0,0.00010529,2]
[352496836,1739137880732,-153.0,0.00014572,2]
[352496837,1739137880742,-5975.42179747,0.000181,2]
[352496838,1739137880754,-4849.99996427,0.000181,2]
[352496839,1739137880765,-8277.934682,0.000181,2]
[352496840,1739137880924,-500.86528397,8.972e-05,2]
[352496841,1739137880934,-500.0,8.972e-05,2]
[352496842,1739137880945,-500.0,9.383e-05,2]
[352496843,1739137880955,-500.0,9.52e-05,2]
[352496844,1739137880965,-500.0,9.657e-05,2]
[352496845,1739137880974,-533.58,9.657e-05,2]
[352496846,1739137880985,-500.0,9.794e-05,2]
[352496847,1739137880996,-506.62569565,9.93e-05,2]
[352496848,1739137881006,-500.0,9.931e-05,2]
[352496849,1739137881016,-500.0,0.00010203,2]
[352496850,1739137881026,-500.0,0.0001034,2]
[352496851,1739137881041,-500.0,0.00010666,2]
[352496852,1739137881051,-500.0,0.00010803,2]
[352496853,1739137881061,-500.0,0.0001094,2]
[352496854,1739137881191,-153.0,0.00014572,2]
[352496855,1739137881202,-230905.17626485,0.000181,2]
[352496856,1739137881213,-2921.45213,0.000181,2]
[352496857,1739137881223,-152.0,0.00018116,3]
[352496858,1739137881233,-171.29,0.00018219,2]
[352496859,1739137881244,-500.0,0.00018228,2]
[352496860,1739137881255,-281.21032,0.00018288,7]
[352496861,1739137881266,-782.74,0.00018299,2]
[352496862,1739137881277,-782.74,0.00018299,2]
[352496863,1739137881296,-782.74,0.00018299,2]
[352496864,1739137881306,-782.74,0.00018299,2]
[352496865,1739137881317,-782.82361477,0.00018299,2]
[352496866,1739137881327,-1144.13866021,0.0001834,2]
[352496867,1739137881338,-506.2338598,0.00018344,3]
[352496868,1739137881349,-720.64558215,0.00018347,2]
[352496869,1739137881358,-13849.96009724,0.0001835,2]
[352496870,1739137881370,-7177.29875942,0.0001835,2]
[352496871,1739137881380,-1000.0,0.00018356,4]
[352496872,1739137881390,-171.29,0.00018356,2]
[352496873,1739137881400,-1718.89886658,0.00018356,2]
[352496874,1739137881412,-800.069992,0.00018356,2]
[352496875,1739137881423,-2808.57393101,0.00018356,2]
[352496876,1739137881469,-500.0,9.109e-05,2]
[352496877,1739137881479,-500.0,9.707e-05,2]
[352496878,1739137881489,-500.0,0.00010068,2]
[352496879,1739137881498,-500.0,0.00011077,2]
[352496880,1739137881508,-7198.88421266,0.00018356,2]
[352496881,1739137881536,-481.34398241,0.00018356,2]
[352496882,1739137881548,-26702.89703176,0.00018356,2]
[352496883,1739137881761,2000.0,0.00013,30]
[352496884,1739137882005,-500.0,8.972e-05,2]
[352496885,1739137882015,-473.91200023,8.972e-05,2]
[352496886,1739137882027,-26.08799977,8.972e-05,2]
[352496887,1739137882041,-500.0,9.109e-05,2]
[352496888,1739137882051,-500.0,9.246e-05,2]
[352496889,1739137882060,-500.0,9.246e-05,2]
[352496890,1739137882069,-500.0,9.383e-05,2]
[352496891,1739137882079,-500.0,9.383e-05,2]
[352496892,1739137882088,-500.0,9.52e-05,2]
[352496893,1739137882101,-281.71200023,9.52e-05,2]
[352496894,1739137882113,-218.28799977,9.52e-05,2]
[352496895,1739137882123,-500.0,9.655e-05,2]
[352496896,1739137882132,-563.0017442,9.655e-05,2]
[352496897,1739137882143,-83.46025403,9.707e-05,2]
[352496898,1739137882154,-193.26038797,9.707e-05,2]
[352496899,1739137882164,-500.0,9.792e-05,2]
[352496900,1739137882174,-500.0,9.844e-05,2]
[352496901,1739137882183,-500.0,9.929e-05,2]
[352496902,1739137882194,-500.0,9.981e-05,2]
[352496903,1739137882203,-500.0,0.00010066,2]
[352496904,1739137882213,-500.0,0.00010118,2]
[352496905,1739137882222,-500.0,0.00010205,2]
[352496906,1739137882232,-500.0,0.00010255,2]
[352496907,1739137882244,-500.0,0.00010342,2]
[352496908,1739137882253,-500.0,0.00010392,2]
[352496909,1739137882263,-500.0,0.00010479,2]
[352496910,1739137882273,-500.0,0.00010529,2]
[352496911,1739137882287,-500.0,0.00010616,2]
[352496912,1739137882296,-490.5788001,0.00010666,2]
[352496913,1739137882327,-500.0,0.00010203,2]
[352496914,1739137882337,-9.4211999,0.00010666,2]
[352496915,1739137882346,-485.68168262,0.00010753,2]
[352496916,1739137882360,-14.31831738,0.00010753,2]
[352496917,1739137882369,-438.11688516,0.00010803,2]
[352496918,1739137882380,-61.88311484,0.00010803,2]
[352496919,1739137882390,-500.0,0.0001089,2]
[352496920,1739137882399,-296.83,0.00011027,2]
[352496921,1739137882409,-500.0,0.00011214,2]
[352496922,1739137882418,-500.0,0.00011351,2]
[352496923,1739137882427,-42.46619556,0.00011488,2]
[352496924,1739137882439,-196.16380444,0.00011488,2]
[352496925,1739137882448,-153.0,0.00014572,2]
[352496926,1739137882458,-153.0,0.00014572,2]
[352496927,1739137882468,-42822.85198358,0.00018356,2]
[352496928,1739137882478,-500.0,0.00018365,2]
[352496929,1739137882488,-800.0,0.00018373,2]
[352496930,1739137882497,-500.0,0.00018373,2]
[352496931,1739137882507,-281.21032,0.00018488,7]
[352496932,1739137882516,-171.29,0.00018493,2]
[352496933,1739137882525,-363.33138531,0.00018493,2]
[352496934,1739137882540,-500.0,0.00018502,2]
[352496935,1739137882549,-154.53,0.000186,2]
[352496936,1739137882559,-154.53,0.000186,2]
[352496937,1739137882568,-200.0,0.0001862,2]
[352496938,1739137882577,-217.0,0.0001862,2]
[352496939,1739137882587,-1000.0,0.0001863,4]
[352496940,1739137882596,-171.29,0.0001863,2]
[352496941,1739137882606,-500.0,0.00018639,2]
[352496942,1739137882616,-1700.0,0.00018647,2]
[352496943,1739137882625,-281.21032,0.00018688,7]
[352496944,1739137882635,-4843.4,0.000187,2]
[352496945,1739137882644,-2000.0,0.00018751,2]
[352496946,1739137882654,-171.29,0.00018767,2]
[352496947,1739137882663,-500.0,0.00018776,2]
[352496948,1739137882673,-24658.18615463,0.000188,2]
[352496949,1739137882682,-11239.3946246,0.00018804,2]
[352496950,1739137882692,-151.0,0.00018843,2]
[352496951,1739137882701,-15565.39350727,0.00018888,2]
[352496952,1739137882711,-281.21032,0.00018888,7]
[352496953,1739137882720,-9800.86049633,0.000189,14]
[352496954,1739137882729,-25612.29768027,0.000189,2]
[352496955,1739137882739,-71502.35858976,0.000189,7]
[352496956,1739137882748,-1000.0,0.00018904,4]
[352496957,1739137882758,-171.29,0.00018904,2]
[352496958,1739137882768,-500.0,0.00018913,2]
[352496959,1739137882777,-23022.0785534,0.00019,2]
[352496961,1739137882796,-7146.95915428,0.00019,2]
[352496964,1739137882816,-500.0,0.0001094,2]
[352496966,1739137882825,-185.32300184,0.00019,2]
[352496968,1739137882837,-520.74999985,0.00019,2]
[352496970,1739137882848,-589.3750018,0.00019,2]
[352496977,1739137882957,-500.0,9.656e-05,2]
[352498481,1739138062811,-485.3065,8.256e-05,2]
[352498482,1739138062838,-1000.0,8.81e-05,2]
[352498483,1739138062862,-542.1513,8.836e-05,2]
[352498484,1739138062886,-2145.3863,8.836e-05,2]
[352498485,1739138062913,-379.738,8.836e-05,2]
[352498486,1739138097964,-889.9,8.851e-05,2]
[352498487,1739138097992,-2500.0,8.851e-05,2]
[352498488,1739138098019,-150.0,8.971e-05,2]
[352498489,1739138098046,-500.0,8.972e-05,2]
[352498490,1739138098073,-500.0,8.972e-05,2]
[352498491,1739138098119,-500.0,8.972e-05,2]
[352498492,1739138098151,-500.0,8.972e-05,2]
[352498493,1739138098186,-500.0,8.972e-05,2]
[352498494,1739138098220,-500.0,8.972e-05,2]
[352498495,1739138098253,-500.0,8.972e-05,2]
[352498496,1739138098281,-500.0,8.972e-05,2]
[352498497,1739138098311,-500.0,8.972e-05,2]
[352498498,1739138098338,-500.0,8.972e-05,2]
[352498499,1739138098365,-500.0,8.972e-05,2]
[352498500,1739138098395,-500.0,8.972e-05,2]
[352498501,1739138098422,-428.85766724,8.972e-05,2]
[352498502,1739138098451,-500.0,8.972e-05,2]
[352498503,1739138098478,-500.0,8.972e-05,2]
[352498504,1739138098504,-500.0,8.972e-05,2]
[352498505,1739138098531,-500.0,8.972e-05,2]
[352498506,1739138098559,-500.0,8.972e-05,2]
[352498507,1739138098586,-500.54774481,8.972e-05,2]
[352498508,1739138098612,-500.0,8.972e-05,2]
[352498509,1739138098639,-500.0,8.972e-05,2]
[352498510,1739138098666,-500.0,8.972e-05,2]
[352498511,1739138098694,-500.0,8.972e-05,2]
[352498512,1739138098720,-500.29617849,8.972e-05,2]
[352498513,1739138098747,-500.0,8.972e-05,2]
[352498514,1739138098774,-500.0,8.972e-05,2]
[352498515,1739138098801,-500.0,8.972e-05,2]
[352498516,1739138098829,-500.0,8.972e-05,2]
[352498517,1739138098857,-500.0,8.972e-05,2]
[352498518,1739138098883,-500.0,8.972e-05,2]
[352498519,1739138098913,-500.0,8.972e-05,2]
[352498520,1739138098943,-500.0,8.972e-05,2]
[352498521,1739138098968,-500.0,8.972e-05,2]
[352498522,1739138098996,-30.39840946,8.972e-05,2]
[352498523,1739138163249,2447.4179,8.836e-05,2]
[352498525,1739138354962,200.0,7.978e-05,2]
[352498526,1739138394049,804.52,7.971e-05,2]
[352498527,1739138768546,2000.0,7.984e-05,2]
[352498528,1739138956896,-812.33,8.219e-05,2]
[352498529,1739138956921,-172.38,8.238e-05,2]
[352498530,1739138993239,1500.0,7.974e-05,2]
[352498531,1739139003079,23900.0,7.981e-05,2]
[352498544,1739139032499,-475.475,8.219e-05,2]
[352498545,1739139032544,-254.89,8.219e-05,2]
[352498546,1739139032775,-269.635,8.219e-05,2]
[352498547,1739139032785,-411.72,8.819e-05,2]
[352498548,1739139032794,-411.72,8.821e-05,2]
[352498549,1739139032803,-411.72,8.824e-05,2]
[352498550,1739139032813,-411.72,8.826e-05,2]
[352498551,1739139032822,-411.72,8.828e-05,2]
[352498552,1739139032831,-788.69886877,8.828e-05,2]
[352498553,1739139037365,-411.72,8.831e-05,2]
[352498554,1739139037375,-411.72,8.833e-05,2]
[352498555,1739139037386,-411.72,8.835e-05,2]
[352498556,1739139037394,-889.49010571,8.836e-05,2]
[352498557,1739139037406,-3694.87349429,8.836e-05,2]
[352498558,1739139037415,-411.72,8.838e-05,2]
[352498559,1739139037424,-411.72,8.84e-05,2]
[352498560,1739139037433,-411.72,8.842e-05,2]
[352498561,1739139037443,-411.72,8.844e-05,2]
[352498562,1739139037453,-411.72,8.847e-05,2]
[352498563,1739139037463,-411.72,8.849e-05,2]
[352498564,1739139037474,-411.72,8.851e-05,2]
[352498565,1739139037483,-411.72,8.854e-05,2]
[352498566,1739139037491,-411.72,8.856e-05,2]
[352498567,1739139037503,-411.72,8.858e-05,2]
[352498568,1739139037513,-411.72,8.861e-05,2]
[352498569,1739139037523,-411.72,8.863e-05,2]
[352498570,1739139037532,-150.0,8.931e-05,2]
[352498571,1739139037543,-2977.9587,8.932e-05,2]
[352498572,1739139037552,-690.22670659,8.971e-05,2]
[352498574,1739139037569,-500.0,8.972e-05,2]
[352498575,1739139037578,-500.0,8.972e-05,2]
[352498576,1739139037587,-500.0,8.972e-05,2]
[352498578,1739139037596,-500.0,8.972e-05,2]
[352498580,1739139037606,-500.0,8.972e-05,2]
[352498581,1739139037615,-500.0,8.972e-05,2]
[352498583,1739139037625,-500.0,8.972e-05,2]
[352498584,1739139037636,-500.0,8.972e-05,2]
[352498585,1739139037646,-301.85151837,8.972e-05,2]
[352498586,1739139037655,-500.0,8.972e-05,2]
[352498587,1739139037664,-500.0,8.972e-05,2]